fUSD/lending_fUSD_20250304
["ID","MTS","AMOUNT","RATE_DAILY","PERIOD"]
[355288972,1741056641918,-500.0,0.00012725,2]
[355288974,1741056641928,-4706.18,0.00012725,2]
[355288976,1741056641938,-500.0,0.00012725,2]
[355288978,1741056641948,-1005.69,0.00012725,2]
[355288980,1741056641959,-1771.97,0.00012725,2]
[355288982,1741056641969,-531.79,0.00012725,2]
[355288985,1741056641980,-500.0,0.00012725,2]
[355288987,1741056641989,-168.5006885,0.00012725,2]
[355288989,1741056641999,-500.0,0.00012725,2]
[355288991,1741056642008,-5501.8,0.00012725,2]
[355288992,1741056642018,-1800.27,0.00012725,2]
[355288995,1741056642028,-829.64,0.00012725,2]
[355288997,1741056642038,-2295.3,0.00012725,2]
[355288999,1741056642048,-910.95,0.00012725,2]
[355289001,1741056642060,-5744.25,0.00012725,2]
[355289003,1741056642069,-628.39,0.00012725,2]
[355289005,1741056642079,-1337.15,0.00012725,2]
[355289007,1741056642089,-1468.83,0.00012725,2]
[355289009,1741056642098,-1962.17,0.00012725,2]
[355289011,1741056642108,-7119.45,0.00012725,2]
[355289013,1741056642118,-500.0,0.00012725,2]
[355289015,1741056642127,-3099.15,0.00012725,2]
[355289017,1741056642137,-1044.11,0.00012725,2]
[355289019,1741056642147,-2706.39,0.00012725,2]
[355289021,1741056642156,-1607.55,0.00012725,2]
[355289023,1741056642166,-2499.51,0.00012725,2]
[355289025,1741056642175,-500.0,0.00012725,2]
[355289027,1741056642186,-1032.64,0.00012725,2]
[355289030,1741056642195,-1420.15,0.00012725,2]
[355289032,1741056642206,-230.03322104,0.00012725,2]
[355289034,1741056642216,-513.73842885,0.00012725,2]
[355289036,1741056642226,-613.74,0.00012725,2]
[355289038,1741056642236,-500.0,0.00012725,2]
[355289040,1741056642245,-5096.14,0.00012725,2]
[355289042,1741056642255,-2728.44,0.00012725,2]
[355289044,1741056642265,-731.82,0.00012725,2]
[355289046,1741056642274,-1581.25,0.00012725,2]
[355289048,1741056642284,-9936.12,0.00012725,2]
[355289050,1741056642295,-523.61,0.00012725,2]
[355289052,1741056642304,-3244.86,0.00012725,2]
[355289054,1741056642314,-500.0,0.00012725,2]
[355289056,1741056642324,-1193.34,0.00012725,2]
[355289058,1741056642334,-500.0,0.00012725,2]
[355289061,1741056642343,-2507.14,0.00012725,2]
[355289063,1741056642354,-500.0,0.00012725,2]
[355289064,1741056642363,-1006.91,0.00012725,2]
[355289067,1741056642374,-500.0,0.00012725,2]
[355289068,1741056642383,-500.0,0.00012725,2]
[355289071,1741056642394,-661.61,0.00012725,2]
[355289073,1741056642403,-1979.93,0.00012725,2]
[355289075,1741056642413,-3292.59,0.00012725,2]
[355289077,1741056642422,-505.05369788,0.00012725,2]
[355289079,1741056642432,-758.09,0.00012725,2]
[355289081,1741056642441,-504.0470585,0.00012725,2]
[355289083,1741056642450,-1262.93,0.00012725,2]
[355289085,1741056642460,-1843.33,0.00012725,2]
[355289087,1741056642470,-644.43057106,0.00012725,2]
[355289089,1741056642480,-505.34576907,0.00012725,2]
[355289091,1741056642490,-505.84564708,0.00012725,2]
[355289093,1741056642500,-1232.89,0.00012725,2]
[355289116,1741056642717,-2282.98,0.00012725,2]
[355289118,1741056642727,-1583.48,0.00012725,2]
[355289120,1741056642737,-1716.54,0.00012725,2]
[355289123,1741056642746,-774.03,0.00012725,2]
[355289124,1741056642755,-666.75,0.00012725,2]
[355289126,1741056642765,-2314.0,0.00012725,2]
[355289128,1741056642774,-298.16604101,0.00012725,2]
[355289130,1741056642784,-1174.21,0.00012725,2]
[355289132,1741056642794,-2013.52,0.00012725,2]
[355289134,1741056642804,-2115.16,0.00012725,2]
[355289137,1741056642817,-1044.51,0.00012725,2]
[355289138,1741056642826,-2687.66,0.00012725,2]
[355289140,1741056642835,-677.69,0.00012726,2]
[355289143,1741056642846,-180.93982709,0.00012726,2]
[355289144,1741056642855,-404.56919972,0.00012726,2]
[355289146,1741056642864,-702.26,0.00012726,2]
[355289149,1741056642874,-175.29045356,0.00012726,2]
[355289152,1741056642884,-903.31,0.00012726,2]
[355289155,1741056642895,-758.72,0.00012726,2]
[355289156,1741056642905,-500.0,0.00012726,2]
[355289158,1741056642914,-500.0,0.00012726,2]
[355289161,1741056642924,-854.68,0.00012726,2]
[355289164,1741056642933,-500.0,0.00012726,2]
[355289166,1741056642942,-500.0,0.00012726,2]
[355289168,1741056642952,-500.0,0.00012726,2]
[355289171,1741056642962,-506.53,0.00012726,2]
[355289173,1741056642971,-500.0,0.00012726,2]
[355289175,1741056642981,-500.0,0.00012726,2]
[355289177,1741056642991,-878.8,0.00012726,2]
[355289179,1741056643000,-520.69687891,0.00012726,2]
[355289181,1741056643009,-1088.34,0.00012726,2]
[355289183,1741056643018,-500.0,0.00012726,2]
[355289185,1741056643027,-507.34172081,0.00012726,2]
[355289188,1741056643036,-645.77,0.00012726,2]
[355289190,1741056643045,-756.91,0.00012726,2]
[355289192,1741056643054,-508.37564857,0.00012726,2]
[355289195,1741056643063,-507.91463527,0.00012726,2]
[355289198,1741056643073,-513.32762091,0.00012726,2]
[355289201,1741056643082,-505.5722481,0.00012726,2]
[355289204,1741056643091,-1037.67,0.00012726,2]
[355289207,1741056643101,-500.0,0.00012726,2]
[355289210,1741056643110,-507.47094271,0.00012726,2]
[355289214,1741056643119,-1344.77,0.00012726,2]
[355289218,1741056643128,-509.6206617,0.00012726,2]
[355289220,1741056643138,-480.31150164,0.00012726,2]
[355289223,1741056643147,-514.05266172,0.00012726,2]
[355289226,1741056643156,-999.94,0.00012726,2]
[355289228,1741056643165,-577.14,0.00012726,2]
[355289230,1741056643175,-516.20911924,0.00012726,2]
[355289232,1741056643184,-502.3922422,0.00012726,2]
[355289234,1741056643193,-518.5288148,0.00012726,2]
[355289236,1741056643203,-507.61369958,0.00012726,2]
[355289238,1741056643213,-511.40693438,0.00012726,2]
[355289240,1741056643222,-500.0,0.00012726,2]
[355289242,1741056643231,-664.46,0.00012726,2]
[355289244,1741056643240,-500.0,0.00012726,2]
[355289246,1741056643250,-521.58202655,0.00012726,2]
[355289248,1741056643259,-627.18923667,0.00012726,2]
[355289250,1741056643269,-1033.01,0.00012726,2]
[355289252,1741056643278,-506.28160583,0.00012726,2]
[355289254,1741056643289,-214.55226663,0.00012726,2]
[355289256,1741056643298,-524.28385345,0.00012726,2]
[355289258,1741056643307,-1541.06,0.00012726,2]
[355289260,1741056643317,-536.29650909,0.00012726,2]
[355289262,1741056643326,-500.0,0.00012726,2]
[355289264,1741056643335,-595.24,0.00012726,2]
[355289266,1741056643345,-518.4982936,0.00012726,2]
[355289268,1741056643354,-1352.42,0.00012726,2]
[355289270,1741056643364,-500.0,0.00012726,2]
[355289272,1741056643373,-500.0,0.00012726,2]
[355289274,1741056643383,-502.36399907,0.00012726,2]
[355289277,1741056643393,-2016.56,0.00012726,2]
[355289278,1741056643403,-732.77,0.00012726,2]
[355289280,1741056643413,-1240.53,0.00012726,2]
[355289282,1741056643423,-503.26500093,0.00012726,2]
[355289284,1741056643432,-500.0,0.00012726,2]
[355289286,1741056643442,-711.76,0.00012726,2]
[355289289,1741056643451,-1345.1,0.00012726,2]
[355289291,1741056643461,-500.0,0.00012726,2]
[355289293,1741056643472,-1469.18,0.00012726,2]
[355289294,1741056643481,-500.0,0.00012726,2]
[355289297,1741056643492,-503.42167485,0.00012726,2]
[355289298,1741056643502,-500.0,0.00012726,2]
[355289300,1741056643511,-500.0,0.00012726,2]
[355289302,1741056643521,-500.0,0.00012726,2]
[355289304,1741056643530,-770.38,0.00012726,2]
[355289306,1741056643540,-500.0,0.00012726,2]
[355289308,1741056643549,-1009.06,0.00012726,2]
[355289310,1741056643558,-505.1243642,0.00012726,2]
[355289312,1741056643568,-507.11102598,0.00012726,2]
[355289314,1741056643577,-1016.6,0.00012726,2]
[355289316,1741056643587,-1358.37,0.00012726,2]
[355289318,1741056643597,-1026.48,0.00012726,2]
[355289320,1741056643607,-500.0,0.00012726,2]
[355289323,1741056643618,-1151.85,0.00012726,2]
[355289326,1741056643628,-506.64825265,0.00012726,2]
[355289328,1741056643637,-1132.06,0.00012726,2]
[355289330,1741056643647,-504.9968899,0.00012726,2]
[355289332,1741056643657,-804.66,0.00012726,2]
[355289334,1741056643666,-505.03145981,0.00012726,2]
[355289336,1741056643676,-890.26,0.00012726,2]
[355289338,1741056643686,-507.01751125,0.00012726,2]
[355289340,1741056643695,-507.20613137,0.00012726,2]
[355289342,1741056643704,-500.0,0.00012726,2]
[355289344,1741056643714,-1286.62,0.00012726,2]
[355289346,1741056643724,-502.91164314,0.00012726,2]
[355289348,1741056643734,-500.0,0.00012726,2]
[355289350,1741056643743,-506.35709995,0.00012726,2]
[355289352,1741056643753,-1330.89,0.00012726,2]
[355289354,1741056643762,-1080.05,0.00012726,2]
[355289357,1741056643779,-500.0,0.00012726,2]
[355289359,1741056643798,-500.0,0.00012726,2]
[355289363,1741056643827,-776.64,0.00012726,2]
[355289366,1741056643845,-1661.01,0.00012726,2]
[355289368,1741056643860,-1189.13,0.00012726,2]
[355289371,1741056643874,-500.0,0.00012726,2]
[355289374,1741056643892,-500.0,0.00012726,2]
[355289376,1741056643910,-1054.52,0.00012726,2]
[355289379,1741056643926,-1828.43,0.00012726,2]
[355289382,1741056643946,-1527.19,0.00012726,2]
[355289386,1741056643971,-500.0,0.00012726,2]
[355289389,1741056643989,-1688.32,0.00012726,2]
[355289391,1741056644004,-735.71,0.00012726,2]
[355289393,1741056644017,-973.0,0.00012726,2]
[355289396,1741056644035,-500.0,0.00012726,2]
[355289398,1741056644047,-500.0,0.00012726,2]
[355289401,1741056644061,-500.0,0.00012726,2]
[355289404,1741056644077,-1311.4,0.00012726,2]
[355289406,1741056644089,-675.12,0.00012726,2]
[355289408,1741056644104,-2773.77,0.00012726,2]
[355289411,1741056644119,-500.0,0.00012726,2]
[355289414,1741056644133,-674.36,0.00012726,2]
[355289416,1741056644147,-29062.89,0.00012726,2]
[355289418,1741056644161,-694.89,0.00012726,2]
[355289421,1741056644179,-808.87,0.00012726,2]
[355289424,1741056644193,-1248.41,0.00012726,2]
[355289426,1741056644209,-500.0,0.00012726,2]
[355289429,1741056644224,-1447.93,0.00012726,2]
[355289432,1741056644238,-1125.83,0.00012726,2]
[355289434,1741056644253,-500.53,0.00012726,2]
[355289437,1741056644267,-1063.27,0.00012726,2]
[355289439,1741056644281,-2120.5,0.00012726,2]
[355289442,1741056644295,-500.0,0.00012726,2]
[355289444,1741056644312,-894.92,0.00012726,2]
[355289446,1741056644329,-1051.73,0.00012726,2]
[355289449,1741056644344,-4232.39,0.00012726,2]
[355289452,1741056644358,-500.0,0.00012726,2]
[355289454,1741056644372,-500.0,0.00012726,2]
[355289457,1741056644386,-659.47,0.00012726,2]
[355289459,1741056644400,-1330.22,0.00012726,2]
[355289462,1741056644415,-33397.23,0.00012726,2]
[355289464,1741056644429,-1045.81,0.00012726,2]
[355289467,1741056644443,-641.15,0.00012726,2]
[355289469,1741056644459,-859.53,0.00012726,2]
[355289472,1741056644473,-500.0,0.00012726,2]
[355289474,1741056644487,-4002.72,0.00012726,2]
[355289477,1741056644500,-500.0,0.00012726,2]
[355289479,1741056644514,-500.0,0.00012726,2]
[355289482,1741056644528,-1395.06,0.00012726,2]
[355289484,1741056644543,-826.32,0.00012726,2]
[355289487,1741056644557,-500.0,0.00012726,2]
[355289489,1741056644571,-1505.43,0.00012726,2]
[355289492,1741056644586,-1726.94,0.00012726,2]
[355289494,1741056644601,-1141.88,0.00012726,2]
[355289497,1741056644617,-3052.18,0.00012726,2]
[355289499,1741056644633,-5798.86,0.00012726,2]
[355289502,1741056644648,-506.11869747,0.00012726,2]
[355289504,1741056644664,-500.0,0.00012726,2]
[355289507,1741056644679,-500.0,0.00012726,2]
[355289509,1741056644694,-1900.7,0.00012726,2]
[355289512,1741056644709,-508.33551569,0.00012726,2]
[355289515,1741056644725,-500.0,0.00012726,2]
[355289517,1741056644740,-500.0,0.00012726,2]
[355289520,1741056644755,-500.0,0.00012726,2]
[355289522,1741056644770,-5815.66,0.00012726,2]
[355289525,1741056644785,-1107.91,0.00012726,2]
[355289527,1741056644802,-681.92,0.00012726,2]
[355289528,1741056644821,-1087.18,0.00012726,2]
[355289529,1741056644837,-2846.13,0.00012726,2]
[355289530,1741056644854,-854.33,0.00012726,2]
[355289531,1741056644868,-1458.07,0.00012726,2]
[355289532,1741056644886,-500.0,0.00012726,2]
[355289533,1741056644903,-3273.45,0.00012726,2]
[355289534,1741056644918,-1818.72,0.00012726,2]
[355289535,1741056644934,-645.34,0.00012726,2]
[355289536,1741056644948,-1750.4,0.00012726,2]
[355289537,1741056644966,-500.0,0.00012726,2]
[355289538,1741056644983,-2558.47,0.00012726,2]
[355289539,1741056644998,-402.06530084,0.00012726,2]
[355289540,1741056645015,-1888.0,0.00012726,2]
[355289541,1741056645031,-1013.63,0.00012726,2]
[355289542,1741056645046,-3552.55,0.00012726,2]
[355289543,1741056645061,-3853.52,0.00012726,2]
[355289544,1741056645076,-829.31,0.00012726,2]
[355289545,1741056645091,-818.59,0.00012726,2]
[355289546,1741056645106,-890.38,0.00012726,2]
[355289547,1741056645120,-22702.96,0.00012726,2]
[355289548,1741056645136,-639.34665385,0.00012726,2]
[355289549,1741056645151,-500.0,0.00012726,2]
[355289550,1741056645166,-529.40768617,0.00012726,2]
[355289551,1741056645183,-1090.53,0.00012726,2]
[355289552,1741056645198,-4340.92,0.00012726,2]
[355289553,1741056645212,-500.0,0.00012726,2]
[355289554,1741056645226,-1029.02,0.00012726,2]
[355289556,1741056645240,-648.51,0.00012726,2]
[355289558,1741056645255,-500.0,0.00012726,2]
[355289560,1741056645269,-1134.1,0.00012726,2]
[355289561,1741056645279,-512.14356426,0.00012727,2]
[355289562,1741056645289,-899.05,0.00012727,2]
[355289563,1741056645298,-507.31721852,0.00012727,2]
[355289564,1741056645308,-971.45,0.00012727,2]
[355289565,1741056645317,-1563.72,0.00012727,2]
[355289566,1741056645326,-1326.77,0.00012727,2]
[355289567,1741056645336,-1161.74,0.00012727,2]
[355289568,1741056645346,-500.0,0.00012727,2]
[355289569,1741056645356,-1540.34,0.00012727,2]
[355289570,1741056645365,-1806.94,0.00012727,2]
[355289571,1741056645375,-1014.42,0.00012727,2]
[355289609,1741056645746,-500.0,0.00012727,2]
[355289611,1741056645764,-500.0,0.00012727,2]
[355289613,1741056645774,-500.0,0.00012727,2]
[355289615,1741056645783,-1648.87,0.00012727,2]
[355289617,1741056645793,-1019.98,0.00012727,2]
[355289619,1741056645803,-2075.47,0.00012727,2]
[355289621,1741056645815,-1868.16,0.00012727,2]
[355289623,1741056645826,-500.0,0.00012727,2]
[355289625,1741056645835,-1354.16,0.00012727,2]
[355289627,1741056645845,-1941.72,0.00012727,2]
[355289629,1741056645856,-1047.85,0.00012727,2]
[355289631,1741056645867,-868.13,0.00012727,2]
[355289633,1741056645876,-952.7,0.00012727,2]
[355289635,1741056645886,-1538.14,0.00012727,2]
[355289637,1741056645896,-2158.68,0.00012727,2]
[355289639,1741056645906,-847.96,0.00012727,2]
[355289641,1741056645916,-1769.75,0.00012727,2]
[355289643,1741056645925,-500.0,0.00012727,2]
[355289645,1741056645934,-504.19676604,0.00012727,2]
[355289647,1741056645944,-1343.57,0.00012727,2]
[355289649,1741056645953,-553.65,0.00012727,2]
[355289651,1741056645967,-1701.37,0.00012727,2]
[355289653,1741056645977,-2116.52,0.00012727,2]
[355289655,1741056645986,-596.01,0.00012727,2]
[355289657,1741056645995,-1405.05,0.00012727,2]
[355289659,1741056646004,-1528.52,0.00012727,2]
[355289661,1741056646014,-500.0,0.00012727,2]
[355289663,1741056646024,-1144.9,0.00012727,2]
[355289665,1741056646033,-504.07677887,0.00012727,2]
[355289667,1741056646043,-2169.94688571,0.00012747,2]
[355289669,1741056646052,-1656.95255422,0.00012747,2]
[355289671,1741056646062,-1656.95255422,0.00012778,2]
[355289673,1741056646071,-500.0,0.00012779,2]
[355289675,1741056646081,-744.87,0.0001278,2]
[355289677,1741056646090,-512.71500938,0.0001278,2]
[355289679,1741056646099,-826.05,0.0001278,2]
[355289681,1741056646108,-500.0,0.0001278,2]
[355289682,1741056646117,-686.12,0.0001278,2]
[355289684,1741056646126,-300.21789855,0.0001278,2]
[355289686,1741056646136,-584.12,0.0001278,2]
[355289688,1741056646145,-1033.92,0.0001278,2]
[355289690,1741056646154,-500.0,0.0001278,2]
[355289692,1741056646163,-500.0,0.0001278,2]
[355289694,1741056646173,-506.3121386,0.0001278,2]
[355289696,1741056646182,-190.52325107,0.0001278,2]
[355289698,1741056646191,-500.0,0.0001278,2]
[355289700,1741056646202,-629.89,0.0001278,2]
[355289702,1741056646213,-500.0,0.0001278,2]
[355289704,1741056646222,-1119.2,0.0001278,2]
[355289706,1741056646231,-506.31280675,0.0001278,2]
[355289708,1741056646240,-500.0,0.0001278,2]
[355289710,1741056646250,-643.61,0.0001278,2]
[355289712,1741056646260,-500.0,0.0001278,2]
[355289714,1741056646270,-2169.94688571,0.00012785,2]
[355289717,1741056646279,-1656.95255422,0.00012808,2]
[355289719,1741056646289,-2169.94688571,0.00012824,2]
[355289721,1741056646298,-151.3,0.00012824,2]
[355289723,1741056646308,-251.13697795,0.00012836,2]
[355289725,1741056646319,-1656.95255422,0.00012839,2]
[355289726,1741056646329,-2169.94688571,0.00012862,2]
[355289728,1741056646339,-1656.95255422,0.00012869,2]
[355289730,1741056646348,-232.86049,0.0001287,2]
[355289732,1741056646357,-3116.97362918,0.0001287,2]
[355289734,1741056646366,-3012.514,0.0001289,2]
[355289736,1741056646375,-194.105,0.0001289,2]
[355289738,1741056646385,-246.01348589,0.00012899,2]
[355289740,1741056646394,-338.54483999,0.00012899,2]
[355289742,1741056646403,-1000.0,0.000129,2]
[355289744,1741056646412,-1518.7738139,0.000129,2]
[355289746,1741056646422,-2169.94688571,0.000129,2]
[355289748,1741056646431,-2807.38194223,0.000129,2]
[355289750,1741056646441,-1656.95255422,0.000129,2]
[355289752,1741056646450,-199.62849014,0.00012929,3]
[355289754,1741056646462,-500.0,0.0001293,2]
[355289756,1741056646471,-500.0,0.0001293,2]
[355289758,1741056646480,-313.56283141,0.0001293,2]
[355289760,1741056646489,-787.88,0.0001293,2]
[355289762,1741056646499,-747.55,0.0001293,2]
[355289764,1741056646508,-309.27984515,0.0001293,2]
[355289766,1741056646517,-821.53,0.0001293,2]
[355289768,1741056646527,-946.05,0.0001293,2]
[355289770,1741056646536,-825.5,0.0001293,2]
[355289772,1741056646545,-621.7,0.0001293,2]
[355289774,1741056646555,-590.5,0.0001293,2]
[355289776,1741056646564,-500.0,0.0001293,2]
[355289778,1741056646573,-515.5,0.0001293,2]
[355289780,1741056646582,-1116.58,0.0001293,2]
[355289782,1741056646591,-379.50614488,0.0001293,2]
[355289784,1741056646600,-500.0,0.0001293,2]
[355289786,1741056646609,-500.0,0.0001293,2]
[355289788,1741056646620,-798.59,0.0001293,2]
[355289790,1741056646629,-500.0,0.0001293,2]
[355289792,1741056646638,-500.0,0.0001293,2]
[355289794,1741056646647,-440.44946435,0.0001293,2]
[355289796,1741056646657,-774.23,0.0001293,2]
[355289798,1741056646667,-1024.36,0.0001293,2]
[355289800,1741056646676,-587.12,0.0001293,2]
[355289802,1741056646686,-732.91,0.0001293,2]
[355289804,1741056646695,-521.10830479,0.0001293,2]
[355289806,1741056646704,-1019.69,0.0001293,2]
[355289808,1741056646714,-519.89156194,0.0001293,2]
[355289810,1741056646723,-522.4882188,0.0001293,2]
[355289812,1741056646732,-656.67,0.0001293,2]
[355289814,1741056646742,-741.35,0.0001293,2]
[355289816,1741056646751,-500.0,0.0001293,2]
[355289818,1741056646760,-518.71908619,0.0001293,2]
[355289819,1741056646769,-513.81529993,0.0001293,2]
[355289821,1741056646778,-541.11,0.0001293,2]
[355289823,1741056646788,-515.28935045,0.0001293,2]
[355289825,1741056646797,-500.0,0.0001293,2]
[355289828,1741056646812,-500.0,0.0001293,2]
[355289829,1741056646821,-512.68316857,0.0001293,2]
[355289831,1741056646831,-500.0,0.0001293,2]
[355289833,1741056646840,-730.68,0.0001293,2]
[355289835,1741056646850,-500.0,0.0001293,2]
[355289837,1741056646860,-507.0377993,0.0001293,2]
[355289839,1741056646870,-500.0,0.0001293,2]
[355289841,1741056646880,-500.0,0.0001293,2]
[355289843,1741056646891,-743.77,0.0001293,2]
[355289845,1741056646902,-509.04033612,0.0001293,2]
[355289847,1741056646911,-787.87,0.0001293,2]
[355289849,1741056646920,-500.0,0.0001293,2]
[355289851,1741056646930,-1538.81,0.0001293,2]
[355289853,1741056646939,-932.81,0.0001293,2]
[355289855,1741056646949,-1121.59,0.0001293,2]
[355289857,1741056646959,-1275.55,0.0001293,2]
[355289859,1741056646968,-1221.06,0.0001293,2]
[355289861,1741056646979,-832.1,0.0001293,2]
[355289863,1741056646989,-500.0,0.0001293,2]
[355289865,1741056646998,-1264.2,0.0001293,2]
[355289867,1741056647008,-500.0,0.0001293,2]
[355289869,1741056647017,-900.57,0.0001293,2]
[355289871,1741056647027,-500.0,0.0001293,2]
[355289873,1741056647037,-500.0,0.0001293,2]
[355289875,1741056647046,-867.39,0.0001293,2]
[355289877,1741056647055,-1388.02,0.0001293,2]
[355289879,1741056647065,-644.43,0.0001293,2]
[355289881,1741056647074,-1348.24,0.0001293,2]
[355289883,1741056647084,-500.0,0.0001293,2]
[355289885,1741056647094,-746.38,0.0001293,2]
[355289887,1741056647105,-500.0,0.0001293,2]
[355289889,1741056647114,-500.0,0.0001293,2]
[355289891,1741056647124,-737.97,0.0001293,2]
[355289893,1741056647133,-500.0,0.0001293,2]
[355289895,1741056647143,-500.0,0.0001293,2]
[355289897,1741056647153,-1003.06,0.0001293,2]
[355289899,1741056647162,-802.39,0.0001293,2]
[355289901,1741056647172,-883.95,0.0001293,2]
[355289903,1741056647182,-500.0,0.0001293,2]
[355289905,1741056647193,-500.0,0.0001293,2]
[355289907,1741056647204,-500.0,0.0001293,2]
[355289909,1741056647219,-500.0,0.0001293,2]
[355289911,1741056647232,-14651.0,0.00012959,2]
[355289913,1741056647244,-150.83784909,0.00012968,10]
[355289916,1741056647257,-1432.15617306,0.0001297,2]
[355289917,1741056647268,-1000.0,0.0001297,2]
[355289919,1741056647281,-151.3,0.00012972,2]
[355289922,1741056647292,-160.21251627,0.00012973,2]
[355289923,1741056647304,-500.0,0.00012973,2]
[355289925,1741056647316,-500.0,0.00012973,2]
[355289928,1741056647328,-631.42,0.00012997,2]
[355289929,1741056647339,-1514.75,0.00012997,2]
[355289931,1741056647350,-500.0,0.00012997,2]
[355289933,1741056647360,-500.0,0.00012997,2]
[355289935,1741056647371,-556.72,0.00012998,2]
[355289937,1741056647382,-500.16,0.00012998,2]
[355289939,1741056647393,-582.76,0.00012998,2]
[355289941,1741056647403,-374.37498607,0.00012998,2]
[355289943,1741056647415,-615.49,0.00012998,2]
[355289945,1741056647427,-633.97,0.00012998,2]
[355289947,1741056647437,-500.0,0.00012998,2]
[355289949,1741056647448,-500.0,0.00012998,2]
[355289951,1741056647464,-500.0,0.00012998,2]
[355289953,1741056647476,-500.0,0.00012998,2]
[355289955,1741056647488,-500.0,0.00012998,2]
[355289957,1741056647499,-500.0,0.00012998,2]
[355289959,1741056647510,-500.0,0.00012998,2]
[355289961,1741056647521,-857.34,0.00012998,2]
[355289963,1741056647531,-648.39,0.00012998,2]
[355289965,1741056647541,-1253.06,0.00012998,2]
[355289967,1741056647551,-7879.58,0.00012998,2]
[355289969,1741056647561,-500.0,0.00012998,2]
[355289971,1741056647571,-1701.47,0.00012998,2]
[355289973,1741056647581,-2199.390001,0.00012998,2]
[355289975,1741056647591,-863.06,0.00012998,2]
[355289977,1741056647601,-724.23,0.00012998,2]
[355289979,1741056647611,-2358.69,0.00012998,2]
[355289981,1741056647620,-2084.47,0.00012998,2]
[355289983,1741056647629,-500.0,0.00012998,2]
[355289985,1741056647639,-687.66,0.00012998,2]
[355289987,1741056647648,-2186.42,0.00012998,2]
[355289989,1741056647657,-654.45,0.00012998,2]
[355289991,1741056647667,-3408.25,0.00012998,2]
[355289993,1741056647677,-2185.36,0.00012998,2]
[355289995,1741056647687,-500.0,0.00012998,2]
[355289997,1741056647696,-2792.45,0.00012998,2]
[355289999,1741056647706,-1400.499076,0.00012998,2]
[355290001,1741056647717,-779.18,0.00012998,2]
[355290003,1741056647727,-591.69662665,0.00012998,2]
[355290005,1741056647736,-501.92,0.00012998,2]
[355290007,1741056647745,-6871.24,0.00012998,2]
[355290009,1741056647755,-500.0,0.00012998,2]
[355290011,1741056647765,-901.65,0.00012998,2]
[355290013,1741056647775,-553.99,0.00012998,2]
[355290015,1741056647785,-889.65,0.00012998,2]
[355290017,1741056647796,-500.0,0.00012998,2]
[355290020,1741056647807,-529.69,0.00012998,2]
[355290021,1741056647818,-2062.23,0.00012998,2]
[355290024,1741056647829,-1560.57,0.00012998,2]
[355290025,1741056647840,-1537.25,0.00012998,2]
[355290027,1741056647851,-1481.99,0.00012998,2]
[355290029,1741056647861,-1049.3,0.00012998,2]
[355290031,1741056647871,-2401.47,0.00012998,2]
[355290033,1741056647881,-2017.78,0.00012998,2]
[355290035,1741056647890,-1356.19,0.00012998,2]
[355290037,1741056647902,-1289.01,0.00012998,2]
[355290039,1741056647912,-1594.64,0.00012998,2]
[355290041,1741056647922,-1071.27,0.00012998,2]
[355290043,1741056647931,-500.0,0.00012998,2]
[355290045,1741056647941,-500.0,0.00012998,2]
[355290048,1741056647951,-500.0,0.00012998,2]
[355290050,1741056647965,-2150.42,0.00012998,2]